bitfinex/quotes_BTCUSD_20250829
["timestamp","ask_amount","ask_price","bid_price","bid_amount"]
[1756489267840,0.18412815,108620.0,108610.0,0.26189007]
[1756489268039,0.20120926,108620.0,108610.0,0.26189007]
[1756489268520,0.20332926,108620.0,108610.0,0.2589751]
[1756489268693,0.76274851,108620.0,108610.0,0.2569851]
[1756489269108,0.76274851,108620.0,108610.0,0.07284]
[1756489269316,0.79009313,108620.0,108610.0,0.002]
[1756489269744,1.21838945,108620.0,108610.0,0.002]
[1756489270149,1.24608345,108620.0,108610.0,0.002]
[1756489270754,1.24608345,108620.0,108580.0,0.0754443]
[1756489270755,0.18417902,108590.0,108580.0,0.0725143]
[1756489270964,0.78499346,108590.0,108580.0,0.0725143]
[1756489271172,1.13014346,108590.0,108580.0,0.0725143]
[1756489271389,1.15386766,108590.0,108580.0,0.0004]
[1756489271603,1.18378104,108590.0,108580.0,0.0004]
[1756489272025,1.18378104,108590.0,108580.0,0.00054282]
[1756489272851,1.18378104,108590.0,108580.0,0.00254282]
[1756489272852,0.57072421,108590.0,108580.0,0.00254282]
[1756489273283,1.15083766,108590.0,108580.0,0.00253282]
[1756489273699,1.15183766,108590.0,108580.0,0.00054282]
[1756489274108,1.15083766,108590.0,108580.0,0.00054282]
[1756489274969,0.57072421,108590.0,108580.0,0.00054282]
[1756489275195,0.56860421,108590.0,108580.0,0.1896588]
[1756489275426,0.56860421,108590.0,108580.0,0.00546282]
[1756489275663,0.57072421,108590.0,108580.0,0.00054282]
[1756489275844,0.57072421,108590.0,108580.0,0.00253282]
[1756489276099,0.57072421,108590.0,108580.0,0.00546282]
[1756489276533,0.57072421,108590.0,108580.0,0.00054282]
[1756489277623,1.24216398,108590.0,108580.0,0.00054282]
[1756489278513,0.65901647,108590.0,108580.0,0.00054282]
[1756489278729,1.24221992,108590.0,108580.0,0.00054282]
[1756489280871,1.26992292,108590.0,108580.0,0.00054282]
[1756489282629,1.1785366,108590.0,108580.0,0.00054282]
[1756489283039,1.1816266,108590.0,108580.0,0.00054282]
[1756489284570,1.1785366,108590.0,108580.0,0.00054282]
[1756489285027,1.1816266,108590.0,108580.0,0.00054282]
[1756489285459,1.18160837,108590.0,108580.0,0.00054282]
[1756489285665,1.26990469,108590.0,108580.0,0.00054282]
[1756489286307,0.68670124,108590.0,108580.0,0.00054282]
[1756489286588,1.26990469,108590.0,108580.0,0.00054282]
[1756489287001,1.28432086,108590.0,108580.0,0.00054282]
[1756489288876,1.28432372,108590.0,108580.0,0.00054282]
[1756489289105,1.28431854,108590.0,108580.0,0.00054282]
[1756489289969,1.28122854,108590.0,108580.0,0.00054282]
[1756489290407,1.28431854,108590.0,108580.0,0.00054282]
[1756489290605,0.70111509,108590.0,108580.0,0.00252282]
[1756489290852,1.28122854,108590.0,108580.0,0.00054282]
[1756489292065,1.28431854,108590.0,108580.0,0.00054282]
[1756489294214,1.25805218,108590.0,108580.0,0.00054282]
[1756489295073,0.68671449,108590.0,108580.0,0.00054282]
[1756489295275,1.24363601,108590.0,108580.0,0.00054282]
[1756489295703,1.15533969,108590.0,108580.0,0.00054282]
[1756489296946,1.15321969,108590.0,108580.0,0.00577282]
[1756489297335,1.15842969,108590.0,108580.0,0.00054282]
[1756489297581,1.15522969,108590.0,108580.0,0.00252282]
[1756489297964,1.15522969,108590.0,108580.0,0.00054282]
[1756489298134,1.24352601,108590.0,108580.0,0.00054282]
[1756489298333,1.27767447,108590.0,108580.0,0.00054282]
[1756489299723,1.27134973,108590.0,108580.0,0.00054282]
[1756489299923,1.27778195,108590.0,108580.0,0.00054282]
[1756489302075,1.28098195,108590.0,108580.0,0.00054282]
[1756489302347,1.26656636,108590.0,108580.0,0.00054282]
[1756489302587,6.90587365,108590.0,108580.0,0.00054282]
[1756489302816,1.31897784,108580.0,108570.0,0.0002]
[1756489303038,5.89367032,108580.0,108570.0,0.00034293]
[1756489303245,0.89889032,108580.0,108570.0,0.00034293]
[1756489303600,0.52421295,108570.0,108560.0,0.0004]
[1756489303821,1.12445215,108570.0,108560.0,0.00053205]
[1756489304018,1.12653215,108570.0,108560.0,0.00053205]
[1756489304204,0.59644158,108570.0,108560.0,0.00576205]
[1756489304405,0.59644158,108570.0,108560.0,0.18999196]
[1756489304406,0.58509376,108570.0,108560.0,0.18999196]
[1756489304834,0.55738876,108570.0,108560.0,0.18999196]
[1756489305637,0.55738876,108570.0,108560.0,0.00576205]
[1756489305927,0.55738876,108570.0,108560.0,0.00806492]
[1756489306151,0.55738876,108570.0,108560.0,0.00576205]
[1756489306781,0.55738903,108570.0,108560.0,0.00576205]
[1756489307943,1.17283515,108570.0,108560.0,0.00576205]
[1756489308673,1.17082515,108570.0,108560.0,0.00576205]
[1756489309046,1.17082515,108570.0,108560.0,0.00676205]
[1756489309245,1.11431055,108570.0,108560.0,0.00876205]
[1756489310320,1.13725937,108570.0,108560.0,0.00353205]
[1756489310542,1.71709693,108570.0,108560.0,0.00353205]
[1756489310984,1.73151531,108570.0,108560.0,0.00353205]
[1756489311202,1.81981163,108570.0,108560.0,0.00353205]
[1756489311651,1.26289011,108570.0,108560.0,0.00353205]
[1756489312084,1.25973011,108570.0,108560.0,0.00353205]
[1756489312275,0.59808389,108570.0,108560.0,0.00851205]
[1756489313238,0.62578889,108570.0,108560.0,0.00851205]
[1756489314628,1.18271041,108570.0,108560.0,0.00851205]
[1756489315101,0.62578889,108570.0,108560.0,0.00851205]
[1756489315323,0.62578889,108570.0,108560.0,0.19274196]
[1756489315570,0.06088008,108570.0,108560.0,0.74966348]
[1756489315772,0.05128908,108570.0,108560.0,0.74966348]
[1756489316204,0.02358408,108570.0,108560.0,0.8379598]
[1756489316831,0.01715218,108570.0,108560.0,0.8379598]
[1756489317240,0.01715218,108570.0,108560.0,0.8369598]
[1756489317480,0.01715218,108570.0,108560.0,1.39688132]
[1756489317962,0.20294717,108610.0,108600.0,0.18416206]
[1756489318167,0.59420165,108610.0,108600.0,0.18416206]
[1756489318412,0.22650665,108610.0,108600.0,0.18620206]
[1756489318659,0.22650665,108610.0,108600.0,0.18914206]
[1756489318875,0.56853665,108610.0,108600.0,0.00204]
[1756489319114,0.22853665,108610.0,108600.0,0.00204]
[1756489319348,0.22953665,108610.0,108600.0,0.00204]
[1756489319569,0.18416206,108600.0,108590.0,0.18417902]
[1756489319794,0.20975154,108600.0,108590.0,0.18635107]
[1756489319998,0.20975154,108600.0,108590.0,0.18929107]
[1756489320417,0.02355948,108600.0,108590.0,0.18929107]
[1756489320621,0.20772154,108600.0,108590.0,0.18929107]
[1756489320835,0.20769239,108600.0,108590.0,0.18929107]
[1756489320968,0.20769241,108600.0,108590.0,0.18929107]
[1756489321815,0.20869203,108600.0,108590.0,0.18929107]
[1756489322020,0.02452997,108600.0,108590.0,0.18929107]
[1756489322198,0.20869203,108600.0,108590.0,0.18929107]
[1756489324525,0.21072203,108600.0,108590.0,0.18929107]
[1756489325751,0.21071424,108600.0,108590.0,0.18929107]
[1756489325960,0.21071424,108600.0,108590.0,0.00013205]
[1756489326696,0.21071424,108600.0,108590.0,0.18635107]
[1756489326872,0.02452218,108600.0,108590.0,0.18929107]
[1756489327096,0.02452218,108600.0,108590.0,0.76911573]
[1756489327302,0.01811296,108600.0,108590.0,0.85741205]
[1756489327645,0.00956518,108610.0,108600.0,0.18416206]
[1756489327793,0.00956518,108610.0,108600.0,0.76692672]
[1756489327966,0.21947975,108620.0,108610.0,0.1841451]
[1756489328170,0.25225335,108620.0,108610.0,0.1870851]
[1756489328375,0.04718638,108620.0,108610.0,0.76894976]
[1756489328575,0.02636564,108620.0,108610.0,0.76894976]
[1756489328823,0.02636564,108620.0,108610.0,0.1891251]
[1756489329065,0.02636564,108620.0,108610.0,0.1881251]
[1756489329207,0.01708791,108620.0,108610.0,0.1881251]
[1756489329589,0.81357209,108620.0,108610.0,0.004]
[1756489329801,0.81041209,108620.0,108610.0,0.1881451]
[1756489330003,0.23058743,108620.0,108610.0,0.004]
[1756489330188,0.23374743,108620.0,108610.0,0.004]
[1756489330406,0.79332418,108620.0,108610.0,0.004]
[1756489330644,0.81988359,108620.0,108610.0,0.004]
[1756489330847,0.03296196,108620.0,108610.0,0.19542691]
[1756489331057,0.21709021,108620.0,108610.0,0.00898]
[1756489331259,0.21911863,108620.0,108610.0,0.1931251]
[1756489332442,0.21708863,108620.0,108610.0,0.1931251]
[1756489332649,0.21911863,108620.0,108610.0,0.00604]
[1756489332875,0.21911863,108620.0,108610.0,0.004]
[1756489333309,0.21911863,108620.0,108610.0,0.1901851]
[1756489333649,0.21911863,108620.0,108610.0,0.1931251]
[1756489334326,0.21068906,108620.0,108610.0,0.1931251]
[1756489334828,0.21708788,108620.0,108610.0,0.1931251]
[1756489335810,0.21068906,108620.0,108610.0,0.1931251]
[1756489336097,0.02656091,108620.0,108610.0,0.1931251]
[1756489336299,0.01706985,108620.0,108610.0,0.77294976]
[1756489338161,0.201198,108620.0,108610.0,0.1931251]
[1756489338402,0.01706985,108620.0,108610.0,0.1931251]
[1756489340065,0.201198,108620.0,108610.0,0.1931251]
[1756489340567,0.01706985,108620.0,108610.0,0.1931251]
[1756489341528,0.2105055,108630.0,108610.0,0.1931251]
[1756489341727,0.21690847,108630.0,108610.0,0.1931251]
[1756489342348,0.21690847,108630.0,108610.0,0.1911251]
[1756489342590,0.21690847,108630.0,108620.0,0.18412815]
[1756489342749,0.21895847,108630.0,108620.0,0.18940815]
[1756489344378,0.21895847,108630.0,108620.0,0.19040815]
[1756489344796,0.21895847,108630.0,108620.0,0.001]
[1756489345000,0.77852056,108630.0,108620.0,0.001]
[1756489345227,0.77852056,108630.0,108620.0,0.002]
[1756489345827,0.22212847,108630.0,108620.0,0.002]
[1756489346103,0.77535056,108630.0,108620.0,0.002]
[1756489347049,1.73466689,108630.0,108620.0,0.002]
[1756489347256,1.75439816,108630.0,108620.0,0.002]
[1756489347917,1.76880955,108630.0,108620.0,0.002]
[1756489348351,1.79650355,108630.0,108620.0,0.001]
[1756489348558,0.18416206,108600.0,108590.0,0.07224635]
[1756489348898,1.16910721,108600.0,108590.0,0.07224635]
[1756489349105,0.63244208,108600.0,108590.0,0.07224635]
[1756489349312,1.18883417,108600.0,108590.0,0.07224635]
[1756489349520,0.63244208,108600.0,108590.0,0.07224635]
[1756489349734,1.16910721,108600.0,108590.0,0.00213205]
[1756489349945,1.16595721,108600.0,108590.0,0.00213205]
[1756489350510,1.16595721,108600.0,108590.0,0.00413205]
[1756489350744,0.60956512,108600.0,108590.0,0.00622205]
[1756489350944,1.16595721,108600.0,108590.0,0.00622205]
[1756489351142,1.16595721,108600.0,108590.0,0.00013205]
[1756489351309,1.18954266,108600.0,108590.0,0.00013205]
[1756489351505,1.16606453,108600.0,108590.0,0.00113205]
[1756489351712,1.18959332,108600.0,108590.0,0.00113205]
[1756489352058,1.18959332,108600.0,108590.0,0.00213205]
[1756489353452,0.60961578,108600.0,108590.0,0.00213205]
[1756489353851,1.18959332,108600.0,108590.0,0.00213205]
[1756489354077,1.19274332,108600.0,108590.0,0.00213205]
[1756489354482,1.18959332,108600.0,108590.0,0.00213205]
[1756489355241,1.19273587,108600.0,108590.0,0.00213205]
[1756489355576,0.57068222,108600.0,108590.0,0.00741205]
[1756489355809,0.5476834,108600.0,108590.0,0.19159107]
[1756489357509,0.5497334,108600.0,108590.0,0.00741205]
[1756489357706,0.5497334,108600.0,108590.0,0.00971428]
[1756489357914,1.12971094,108600.0,108590.0,0.00213205]
[1756489359415,1.12971094,108600.0,108590.0,0.00422205]
[1756489359635,0.5497334,108600.0,108590.0,0.00741205]
[1756489359803,0.5476834,108600.0,108590.0,0.00741205]
[1756489360735,0.5497434,108600.0,108590.0,0.00741205]
[1756489360947,0.36352134,108600.0,108590.0,0.1938933]
[1756489361151,0.36352134,108600.0,108590.0,0.19159107]
[1756489361351,0.02352134,108600.0,108590.0,0.19159107]
[1756489362143,0.00641706,108600.0,108590.0,0.19159107]
[1756489362350,0.00641181,108600.0,108590.0,0.19159107]
[1756489362755,0.2097208,108600.0,108590.0,0.00213205]
[1756489362913,0.2097208,108600.0,108590.0,0.18840107]
[1756489363118,0.2097208,108600.0,108590.0,0.00741205]
[1756489363734,0.2076708,108600.0,108590.0,0.1938933]
[1756489363986,0.2076708,108600.0,108590.0,0.19159107]
[1756489364850,0.20767084,108600.0,108590.0,0.19159107]
[1756489366263,0.02350878,108600.0,108590.0,0.19159107]
[1756489366483,0.20767084,108600.0,108590.0,0.19159107]
[1756489367064,0.02350878,108600.0,108590.0,0.19159107]
[1756489368430,0.02350878,108600.0,108590.0,0.77156861]
[1756489368787,0.02350878,108600.0,108590.0,0.19159107]
[1756489369341,0.52414611,108610.0,108600.0,0.18416206]
[1756489369545,0.54766925,108610.0,108600.0,0.18921206]
[1756489370661,0.54970925,108610.0,108600.0,0.18921206]
[1756489370802,0.55070925,108610.0,108600.0,0.18921206]
[1756489371411,0.55070925,108610.0,108600.0,0.18615206]
[1756489371617,0.54866925,108610.0,108600.0,0.18921206]
[1756489372447,0.02452314,108610.0,108600.0,0.18921206]
[1756489372644,0.02452314,108610.0,108600.0,0.7691896]
[1756489372864,0.01811746,108610.0,108600.0,0.7691896]
[1756489373069,0.02453651,108610.0,108600.0,0.7691896]
[1756489373444,0.02453651,108610.0,108600.0,0.7456618]
[1756489373639,0.02353651,108610.0,108600.0,0.7456618]
[1756489373917,0.01711746,108610.0,108600.0,0.7466618]
[1756489374121,0.01711746,108610.0,108600.0,0.83495812]
[1756489374328,0.19342852,108630.0,108620.0,0.18412815]
[1756489374562,0.21697696,108630.0,108620.0,0.18917815]
[1756489375908,0.21999696,108630.0,108620.0,0.18917815]
[1756489376562,0.22199696,108630.0,108610.0,0.81447947]
[1756489376764,0.22199696,108630.0,108610.0,0.90277579]
[1756489376966,0.22199696,108630.0,108610.0,0.34632605]
[1756489377409,0.21899696,108630.0,108610.0,0.74632605]
[1756489377581,0.21899696,108630.0,108620.0,0.18412815]
[1756489377811,0.03386576,108630.0,108620.0,0.18917815]
[1756489378219,0.21899696,108630.0,108610.0,0.74632605]
[1756489378419,0.22099696,108630.0,108620.0,0.18611815]
[1756489378630,0.21897696,108630.0,108620.0,0.18917815]
[1756489378803,0.22100696,108630.0,108620.0,0.18611815]
[1756489378999,0.22100696,108630.0,108620.0,0.18917815]
[1756489379565,0.21900696,108630.0,108610.0,0.74632605]
[1756489379994,0.22000696,108630.0,108610.0,0.74632605]
[1756489380199,0.22000696,108630.0,108610.0,1.30277579]
[1756489380483,0.18412815,108620.0,108610.0,1.30277579]
[1756489380728,0.01712614,108620.0,108610.0,1.30476579]
[1756489380901,0.20125429,108620.0,108610.0,1.30476579]
[1756489381113,0.20329429,108620.0,108610.0,0.47084]
[1756489381315,0.76616368,108620.0,108610.0,0.07084]
[1756489381572,0.1841451,108610.0,108600.0,0.00306]
[1756489381692,0.20127124,108610.0,108600.0,0.18722206]
[1756489381894,0.20331124,108610.0,108600.0,0.18921206]
[1756489382330,0.2033069,108610.0,108600.0,0.18921206]
[1756489383066,0.18416206,108600.0,108590.0,0.07097205]
[1756489383202,0.76619236,108600.0,108590.0,0.00013205]
[1756489383399,0.20974262,108600.0,108590.0,0.00013205]
[1756489383601,0.79283919,108600.0,108590.0,0.00013205]
[1756489383834,1.13283919,108600.0,108590.0,0.00013205]
[1756489384464,1.13283919,108600.0,108590.0,0.00313205]
[1756489384666,1.13283919,108600.0,108590.0,0.00013205]
[1756489385291,0.54974262,108600.0,108590.0,0.00518205]
[1756489385443,0.54974262,108600.0,108590.0,0.18936107]
[1756489385645,0.54974298,108600.0,108590.0,0.18936107]
[1756489385926,0.52620206,108600.0,108590.0,0.00518205]
[1756489386136,0.36454253,108600.0,108590.0,0.18936107]
[1756489386285,0.54770459,108600.0,108590.0,0.18936107]
[1756489386685,0.54770459,108600.0,108590.0,0.19036107]
[1756489386886,0.54974459,108600.0,108590.0,0.19036107]
[1756489387172,0.54770459,108600.0,108590.0,0.19036107]
[1756489387301,0.54770459,108600.0,108590.0,0.19136107]
[1756489387667,0.54770459,108600.0,108590.0,0.19036107]
[1756489387867,0.54770459,108600.0,108590.0,0.19136107]
[1756489388165,0.54770546,108600.0,108590.0,0.19336107]
[1756489389387,0.02354454,108600.0,108590.0,0.19336107]
[1756489389827,0.02354454,108600.0,108590.0,0.59336107]
[1756489392934,0.02354983,108600.0,108590.0,0.19336107]
[1756489393353,0.20771189,108600.0,108590.0,0.59336107]
[1756489393566,0.02355052,108600.0,108590.0,0.59336107]
[1756489394980,0.20771258,108600.0,108590.0,0.19336107]
[1756489397015,0.20973258,108600.0,108590.0,0.00918205]
[1756489397359,0.20973258,108600.0,108590.0,0.19336107]
[1756489398461,0.20771258,108600.0,108590.0,0.19336107]
[1756489399917,0.20974258,108600.0,108590.0,0.19336107]
[1756489400123,0.20974258,108600.0,108590.0,0.19030107]
[1756489400929,0.20974258,108600.0,108590.0,0.59329107]
[1756489401172,0.20974258,108600.0,108590.0,0.19329107]
[1756489402540,0.20771258,108600.0,108590.0,0.19329107]
[1756489403632,0.20129021,108600.0,108590.0,0.19329107]
[1756489403769,0.20771326,108600.0,108590.0,0.19329107]
[1756489404830,0.20974326,108600.0,108590.0,0.19329107]
[1756489405129,0.20974326,108600.0,108590.0,0.40413205]
[1756489405318,0.20974326,108600.0,108590.0,0.00413205]
[1756489405934,0.21281326,108600.0,108590.0,0.00413205]
[1756489406156,0.76951508,108600.0,108590.0,0.00413205]
[1756489407135,0.76953428,108600.0,108590.0,0.00413205]
[1756489412096,0.76953428,108600.0,108590.0,0.00013205]
[1756489412298,0.76646428,108600.0,108590.0,0.00013205]
[1756489412475,0.76646428,108600.0,108590.0,0.00213205]
[1756489412860,0.76646428,108600.0,108590.0,0.00113205]
[1756489412861,0.76953428,108600.0,108590.0,0.00113205]
[1756489413062,0.76953428,108600.0,108590.0,0.00213205]
[1756489414319,0.76313529,108600.0,108590.0,0.00213205]
[1756489414498,0.76957456,108600.0,108590.0,0.00213205]
[1756489415397,0.76650456,108600.0,108590.0,0.00213205]
[1756489415933,0.76957456,108600.0,108590.0,0.00213205]
[1756489416625,1.2188097,108600.0,108590.0,0.00213205]
[1756489416769,1.77551152,108600.0,108590.0,0.00213205]
[1756489416972,1.80321052,108600.0,108590.0,0.00213205]
[1756489417520,1.80321052,108600.0,108590.0,0.00113205]
[1756489417709,1.84537305,108600.0,108590.0,0.00113205]
[1756489418326,1.28867123,108600.0,108590.0,0.00113205]
[1756489419266,0.72989941,108600.0,108590.0,0.00113205]
[1756489419485,0.40672489,108600.0,108590.0,0.19039107]
[1756489419688,0.58988695,108600.0,108590.0,0.18939107]
[1756489420275,0.59188695,108600.0,108590.0,0.18939107]
[1756489420483,0.40872489,108600.0,108590.0,0.18939107]
[1756489420624,0.40872489,108600.0,108590.0,1.14609289]
[1756489420625,0.38102589,108600.0,108590.0,1.14609289]
[1756489420834,0.38002589,108600.0,108590.0,1.14709289]
[1756489421054,0.56418795,108600.0,108590.0,0.59139107]
[1756489421457,0.38002589,108600.0,108590.0,0.59139107]
[1756489421670,0.37802589,108600.0,108590.0,0.59039107]
[1756489421871,0.37802589,108600.0,108590.0,0.59239107]
[1756489422279,0.37802589,108600.0,108590.0,0.59139107]
[1756489422280,0.36361068,108600.0,108590.0,0.59139107]
[1756489422504,0.36361068,108600.0,108590.0,0.59339107]
[1756489424195,0.36361068,108600.0,108590.0,0.19339107]
[1756489424605,0.36361068,108600.0,108590.0,0.59339107]
[1756489424834,0.36360461,108600.0,108590.0,0.59339107]
[1756489425855,0.36360461,108600.0,108590.0,0.19339107]
[1756489427019,0.54776667,108600.0,108590.0,0.19339107]
[1756489427551,0.36360461,108600.0,108590.0,0.19339107]
[1756489428699,0.54776667,108600.0,108590.0,0.19339107]
[1756489428901,0.54979667,108600.0,108590.0,0.19036107]
[1756489429102,0.36360461,108600.0,108590.0,0.19337107]
[1756489429658,0.02360461,108600.0,108590.0,0.19337107]
[1756489429858,0.02360461,108600.0,108590.0,0.75007289]
[1756489430129,0.02360461,108600.0,108590.0,1.15007289]
[1756489435116,0.02360461,108600.0,108590.0,1.23836921]
[1756489435476,0.34,108610.0,108600.0,0.18416206]
[1756489435680,0.36360076,108610.0,108600.0,0.18922206]
[1756489436081,0.36360076,108610.0,108600.0,0.58922206]
[1756489436453,0.36560076,108610.0,108600.0,0.58922206]
[1756489436668,0.54974586,108610.0,108600.0,0.58922206]
[1756489437096,0.36560076,108610.0,108600.0,0.58922206]
[1756489437304,0.36560076,108610.0,108600.0,0.59022206]
[1756489437611,0.02360076,108610.0,108600.0,1.14692388]
[1756489437989,0.02360076,108610.0,108600.0,1.2352202]
[1756489438814,0.00643657,108610.0,108600.0,1.2352202]
[1756489439192,0.00643657,108610.0,108600.0,0.67851838]
[1756489439455,0.02359782,108610.0,108600.0,0.67851838]
[1756489439605,0.02559782,108610.0,108600.0,0.58721206]
[1756489440064,0.02559782,108610.0,108600.0,0.58516206]
[1756489440275,0.02559483,108610.0,108600.0,0.59022206]
[1756489440497,0.02559483,108610.0,108600.0,0.58516206]
[1756489441376,0.02559483,108610.0,108600.0,0.58721206]
[1756489441581,0.02559483,108610.0,108600.0,0.59022206]
[1756489441969,0.02359483,108610.0,108600.0,0.59022206]
[1756489442326,0.02359483,108610.0,108600.0,0.19022206]
[1756489442914,0.02359483,108610.0,108600.0,0.59022206]
[1756489443309,0.02559483,108610.0,108600.0,0.59022206]
[1756489444590,0.20973993,108610.0,108600.0,0.59022206]
[1756489444791,0.02357781,108610.0,108600.0,0.59022206]
[1756489445470,0.02357781,108610.0,108600.0,1.14692388]
[1756489445917,0.02357781,108610.0,108600.0,1.2352202]
[1756489446132,0.01714753,108610.0,108600.0,1.2352202]
[1756489447781,0.01714753,108610.0,108600.0,1.79192202]
[1756489448182,0.00931732,108630.0,108620.0,0.18412815]
[1756489448414,0.00642992,108630.0,108620.0,0.74082997]
[1756489448617,0.02357637,108630.0,108620.0,0.18617815]
[1756489448779,0.02357637,108630.0,108620.0,1.14588997]
[1756489449245,0.03297264,108630.0,108620.0,1.14588997]
[1756489450391,0.06065864,108630.0,108620.0,1.14588997]
[1756489451827,0.05126237,108630.0,108620.0,1.14588997]
[1756489452021,0.02357637,108630.0,108620.0,1.14588997]
[1756489452904,0.01714645,108630.0,108620.0,1.14588997]
[1756489453105,0.367685,108640.0,108630.0,0.1841112]
[1756489453306,0.40234515,108640.0,108630.0,0.1891712]
[1756489453577,0.05124938,108640.0,108630.0,0.74587302]
[1756489453817,0.02356438,108640.0,108630.0,0.74587302]
[1756489454275,0.02356438,108640.0,108630.0,1.14587302]
[1756489454459,0.02361202,108640.0,108630.0,1.14587302]
[1756489455205,4.764e-05,108640.0,108630.0,1.14587302]
[1756489455401,0.02360484,108640.0,108630.0,1.14587302]
[1756489455715,0.02360491,108640.0,108630.0,1.14587302]
[1756489459262,0.01718127,108640.0,108630.0,1.14587302]
[1756489459637,0.01718127,108640.0,108630.0,1.21667302]
[1756489460479,0.02360103,108640.0,108630.0,1.21667302]
[1756489460683,0.01718127,108640.0,108630.0,1.86167116]
[1756489461059,0.01718127,108640.0,108630.0,1.86267116]
[1756489461554,0.01718127,108640.0,108630.0,1.86167116]
[1756489461952,0.01718127,108640.0,108630.0,1.86367116]
[1756489462387,0.01718127,108640.0,108630.0,1.87286123]
[1756489464233,0.01718127,108640.0,108630.0,0.75026752]
[1756489464434,0.01718127,108640.0,108630.0,1.87318134]
[1756489464616,0.01718127,108640.0,108630.0,1.86367116]
[1756489464843,0.01718127,108640.0,108630.0,1.30696934]
[1756489465781,0.01716194,108640.0,108630.0,1.30696934]
[1756489466400,0.01716194,108640.0,108630.0,1.86367116]
[1756489466630,0.01716194,108640.0,108630.0,2.13277116]
[1756489466830,4.764e-05,108640.0,108630.0,2.13277116]
[1756489467060,4.764e-05,108640.0,108630.0,2.50044816]
[1756489470850,4.764e-05,108640.0,108630.0,2.54217177]
[1756489474098,0.01716379,108640.0,108630.0,2.54217177]
[1756489474263,1e-08,108640.0,108630.0,2.54217177]
[1756489474480,1e-08,108640.0,108630.0,2.59217177]
[1756489474681,1e-08,108640.0,108630.0,3.14887359]
[1756489475081,1e-08,108640.0,108630.0,2.95071241]
[1756489475716,1e-08,108640.0,108630.0,2.94871241]
[1756489476564,1e-08,108640.0,108630.0,2.95171241]
[1756489477124,1e-08,108640.0,108630.0,2.39201059]
[1756489477325,1e-08,108640.0,108630.0,2.39601059]
[1756489477523,1e-08,108640.0,108630.0,2.32507177]
[1756489477758,1e-08,108640.0,108630.0,2.27507177]
[1756489477957,1e-08,108640.0,108630.0,2.32507177]
[1756489478813,1e-08,108640.0,108630.0,1.93507177]
[1756489479360,0.01711856,108640.0,108630.0,2.27507177]
[1756489479568,1e-08,108640.0,108630.0,2.27107177]
[1756489479767,0.01910856,108640.0,108630.0,1.71435995]
[1756489480116,0.01910856,108640.0,108630.0,1.71757995]
[1756489480316,0.01910856,108640.0,108630.0,1.71457995]
[1756489481126,0.01910856,108640.0,108630.0,1.71757995]
[1756489481322,0.01910856,108640.0,108630.0,1.37230995]
[1756489482038,0.01910856,108640.0,108630.0,1.92901177]
[1756489482442,0.01910856,108640.0,108630.0,1.37440995]
[1756489483202,0.01910856,108640.0,108630.0,1.37462995]
[1756489483405,0.01910856,108640.0,108630.0,1.93133177]
[1756489483615,0.01711856,108640.0,108630.0,1.93333177]
[1756489483823,0.01713493,108640.0,108630.0,1.93333177]
[1756489484021,0.01713493,108640.0,108630.0,1.93133177]
[1756489484477,0.01713493,108640.0,108630.0,1.93433177]
[1756489485746,0.01713493,108640.0,108630.0,1.93833177]
[1756489486151,0.01912493,108640.0,108630.0,1.65072995]
[1756489486381,0.02873298,108640.0,108630.0,1.57600934]
[1756489487020,0.02555298,108640.0,108630.0,1.57600934]
[1756489487232,0.02555354,108640.0,108630.0,1.57600934]
[1756489487456,0.02556158,108640.0,108630.0,1.57600934]
[1756489489176,0.02556158,108640.0,108630.0,1.57809934]
[1756489489294,0.02556158,108640.0,108630.0,1.58125934]
[1756489491118,0.02357158,108640.0,108630.0,1.58125934]
[1756489492038,0.02357158,108640.0,108630.0,2.13796116]
[1756489492559,0.01714297,108640.0,108630.0,2.13796116]
[1756489493195,1e-08,108640.0,108630.0,2.16563916]
[1756489493376,0.01715273,108640.0,108630.0,2.16563916]
[1756489495720,1e-08,108640.0,108630.0,2.16563916]
[1756489495922,1e-08,108640.0,108630.0,2.20647088]
[1756489500600,1e-08,108640.0,108630.0,2.54647088]
[1756489501394,1e-08,108640.0,108630.0,3.03677088]
[1756489502255,1e-08,108640.0,108630.0,3.03377088]
[1756489502611,1e-08,108640.0,108630.0,3.02977088]
[1756489502810,1e-08,108640.0,108630.0,3.08577088]
[1756489503265,1e-08,108640.0,108630.0,3.08877088]
[1756489504228,1e-08,108640.0,108630.0,3.1067097]
[1756489505604,1e-08,108640.0,108630.0,3.1097097]
[1756489505843,1e-08,108640.0,108630.0,3.3309897]
[1756489508197,0.00295,108680.0,108670.0,0.18404343]
[1756489508446,0.02057811,108680.0,108670.0,0.52394342]
[1756489508587,0.02255811,108680.0,108670.0,1.08064524]
[1756489508795,0.02255811,108680.0,108670.0,0.92394342]
[1756489509247,0.01960811,108680.0,108670.0,0.34313975]
[1756489509437,0.01960811,108680.0,108670.0,0.90609157]
[1756489509627,0.00047719,108680.0,108670.0,1.17519156]
[1756489509886,0.00047719,108680.0,108670.0,1.57519156]
[1756489510084,0.00047719,108680.0,108670.0,1.60285956]
[1756489510212,0.00047719,108680.0,108670.0,1.57519156]
[1756489510616,0.00047719,108680.0,108670.0,1.02048974]
[1756489510833,0.00047719,108680.0,108670.0,1.61811607]
[1756489511264,0.00047719,108680.0,108670.0,1.34901608]
[1756489511446,0.00047719,108680.0,108670.0,1.35747748]
[1756489511875,0.00047719,108680.0,108670.0,1.36147748]
[1756489512396,0.00245719,108680.0,108670.0,1.36147748]
[1756489512631,0.00245719,108680.0,108670.0,1.38389448]
[1756489513358,0.00245719,108680.0,108670.0,1.38598448]
[1756489513568,0.00245719,108680.0,108670.0,1.38914448]
[1756489514045,0.00047719,108680.0,108670.0,1.38914448]
[1756489514250,0.00047719,108680.0,108670.0,0.83244266]
[1756489514502,0.00047719,108680.0,108670.0,1.38914448]
[1756489514702,0.00047719,108680.0,108670.0,1.99824447]
[1756489519093,0.78525176,108730.0,108670.0,1.99424447]
[1756489519303,0.81553306,108730.0,108710.0,0.18397571]
[1756489519499,0.18395879,108720.0,108710.0,0.18397571]
[1756489519699,0.20798329,108720.0,108710.0,0.18397571]
[1756489520370,0.0240245,108720.0,108710.0,0.18397571]
[1756489520761,0.01760055,108720.0,108710.0,0.18397571]
[1756489521139,0.01860055,108720.0,108710.0,0.18397571]
[1756489521706,0.02804886,108720.0,108710.0,0.18397571]
[1756489522130,0.02804886,108720.0,108710.0,0.18497571]
[1756489522344,0.02704886,108720.0,108710.0,0.18497571]
[1756489522664,0.02804886,108720.0,108710.0,0.18497571]
[1756489526105,0.03447297,108720.0,108710.0,0.18497571]
[1756489526527,0.02502466,108720.0,108710.0,0.18797571]
[1756489526729,0.01813055,108720.0,108710.0,0.83513385]
[1756489527659,0.01813055,108720.0,108710.0,1.23513385]
[1756489528404,0.01813862,108720.0,108710.0,1.23513385]
[1756489530806,0.01813862,108720.0,108710.0,1.50423384]
[1756489530807,0.001,108720.0,108710.0,1.50423384]
[1756489531008,0.001,108720.0,108710.0,1.53188984]
[1756489531211,0.0004,108740.0,108710.0,1.53188984]
[1756489531419,0.02356135,108750.0,108740.0,0.18392495]
[1756489531618,0.02403554,108750.0,108740.0,0.18392495]